bitfinex/quotes_SOLUSD_20241127
["timestamp","ask_amount","ask_price","bid_price","bid_amount"]
[1732720428276,12.66576206,238.69,238.62,74.53573468]
[1732720428462,20.0,238.68,238.64,12.66576206]
[1732720428665,20.0,238.68,238.65,0.83570139]
[1732720429285,12.66576206,238.71,238.65,0.83570139]
[1732720429484,20.0,238.68,238.65,0.83570139]
[1732720429694,20.0,238.67,238.62,86.36576206]
[1732720429870,20.0,238.67,238.63,0.83574116]
[1732720430495,20.0,238.67,238.62,73.7]
[1732720430671,20.0,238.67,238.63,0.83579562]
[1732720432385,20.0,238.65,238.63,0.83579562]
[1732720432584,20.0,238.65,238.62,73.7]
[1732720432980,12.66576206,238.7,238.63,0.83577886]
[1732720433183,20.0,238.67,238.63,13.50154092]
[1732720434092,20.0,238.69,238.63,0.83577886]
[1732720434275,20.0,238.69,238.63,74.53577886]
[1732720435892,2.094,238.77,238.67,86.36576206]
[1732720436093,11.5086,238.82,238.67,86.36576206]
[1732720436094,12.66576206,238.75,238.68,74.53554675]
[1732720436419,15.7533,238.83,238.7,18.92386206]
[1732720436420,12.66576206,238.78,238.7,18.92386206]
[1732720436605,12.66576206,238.78,238.71,0.83541315]
[1732720437379,12.66576206,238.76,238.71,0.83541315]
[1732720437698,12.66576206,238.78,238.71,0.83541315]
[1732720438081,20.0,238.75,238.71,0.83541315]
[1732720439700,12.66576206,238.76,238.71,0.83541315]
[1732720439882,12.66576206,238.76,238.7,6.2581]
[1732720440084,12.66576206,238.72,238.7,79.9581]
[1732720440408,12.66576206,238.74,238.7,79.9581]
[1732720440903,20.0,238.71,238.69,88.9239]
[1732720441085,20.0,238.73,238.69,101.58966206]
[1732720441281,14.75936206,238.82,238.71,12.66576206]
[1732720441481,14.75936206,238.82,238.7,74.53550806]
[1732720441482,14.75936206,238.82,238.73,12.66576206]
[1732720441684,12.66576206,238.8,238.74,0.83533313]
[1732720441994,12.66576206,238.78,238.74,74.53533313]
[1732720442883,20.0,238.77,238.74,74.53533313]
[1732720443303,5.2322,238.91,238.75,12.66576206]
[1732720443481,2.093,238.89,238.79,15.2671]
[1732720443682,12.66576206,238.88,238.8,13.50087932]
[1732720443894,5.2312,238.95,238.8,87.20087932]
[1732720444099,16.6323,238.97,238.84,12.66576206]
[1732720444100,12.66576206,238.92,238.84,12.66576206]
[1732720444414,12.66576206,238.92,238.85,0.83492976]
[1732720444598,12.66576206,238.92,238.85,74.53492976]
[1732720445316,12.66576206,238.86,238.85,73.7]
[1732720445613,12.66576206,238.86,238.79,88.9671]
[1732720445801,12.66576206,238.83,238.79,88.9671]
[1732720446301,12.66576206,238.81,238.79,15.2671]
[1732720446495,12.66576206,238.83,238.79,15.2671]
[1732720446894,12.66576206,238.83,238.79,88.9671]
[1732720447212,20.0,238.8,238.79,73.7]
[1732720447911,12.66576206,238.83,238.79,73.7]
[1732720448311,12.66576206,238.92,238.79,74.53521749]
[1732720448312,20.0,238.82,238.79,74.53521749]
[1732720448939,20.0,238.84,238.8,12.66576206]
[1732720449114,12.66576206,238.89,238.82,12.66576206]
[1732720449286,20.0,238.86,238.83,74.53503077]
[1732720449612,20.0,238.84,238.83,45.17289035]
[1732720449786,12.66576206,238.91,238.83,19.77289035]
[1732720449993,12.66576206,238.93,238.85,28.28756206]
[1732720450223,12.66576206,238.93,238.86,0.83490678]
[1732720450521,12.66576206,238.9,238.86,6.3515]
[1732720450686,12.66576206,238.93,238.86,26.95927646]
[1732720451108,12.66576206,238.9,238.86,0.83488611]
[1732720451312,20.0,238.87,238.83,0.83500624]
[1732720451501,20.0,238.85,238.82,20.60799974]
[1732720452317,20.0,238.85,238.82,19.77289035]
[1732720452787,20.0,238.87,238.82,20.60800062]
[1732720452993,12.66576206,238.94,238.85,12.66576206]
[1732720453199,12.66576206,238.96,238.87,12.66576206]
[1732720453513,2.0924,238.95,238.88,0.83483225]
[1732720454112,12.66576206,238.96,238.88,0.83483225]
[1732720454503,20.0,238.93,238.88,20.6077226]
[1732720454894,12.66576206,238.94,238.88,20.6077226]
[1732720455299,12.66576206,238.92,238.88,20.6077226]
[1732720455818,12.66576206,238.92,238.88,19.77289035]
[1732720456710,12.66576206,238.9,238.88,19.77289035]
[1732720456914,20.0,238.87,238.8,26.21409035]
[1732720457209,32.66576206,238.87,238.81,0.83510003]
[1732720457406,20.0,238.86,238.81,0.83510003]
[1732720457600,20.0,238.88,238.83,32.43865241]
[1732720457804,20.0,238.88,238.84,0.83501582]
[1732720458006,12.66576206,238.93,238.85,12.66576206]
[1732720458209,20.0,238.9,238.86,0.83490072]
[1732720458617,20.0,238.88,238.84,0.83494307]
[1732720459621,20.0,238.88,238.83,19.77289035]
[1732720459797,20.0,238.86,238.83,19.77289035]
[1732720461809,12.66576206,238.87,238.83,19.77289035]
[1732720464025,20.0,238.84,238.83,19.77289035]
[1732720465911,12.66576206,238.87,238.83,19.77289035]
[1732720468018,12.66576206,238.85,238.83,19.77289035]
[1732720468617,12.66576206,238.85,238.79,19.77289035]
[1732720468618,20.0,238.82,238.79,19.77289035]
[1732720468823,12.66576206,238.81,238.79,19.77289035]
[1732720469028,12.66576206,238.81,238.75,20.60805752]
[1732720469205,12.66576206,238.83,238.75,20.60805752]
[1732720469404,20.0,238.8,238.75,20.60805752]
[1732720470103,12.66576206,238.81,238.75,20.60805752]
[1732720470619,20.0,238.78,238.75,20.60805752]
[1732720471008,20.0,238.8,238.75,20.60805752]
[1732720471206,20.0,238.78,238.75,20.60805752]
[1732720471819,2.0935,238.83,238.75,20.60805752]
[1732720471820,12.66576206,238.85,238.77,32.43865241]
[1732720472004,12.66576206,238.85,238.78,0.83515148]
[1732720472704,12.66576206,238.87,238.79,12.66576206]
[1732720472905,12.66576206,238.87,238.8,0.83509966]
[1732720473317,20.0,238.84,238.8,0.83509966]
[1732720475835,20.0,238.84,238.82,32.43865241]
[1732720476132,20.0,238.91,238.83,23.776884]
[1732720476308,2.0928,238.91,238.85,12.66576206]
[1732720476514,20.0,238.89,238.85,12.66576206]
[1732720476812,20.0,238.89,238.84,0.83497387]
[1732720477315,20.0,238.87,238.82,35.46669035]
[1732720477517,20.0,238.87,238.82,36.30177689]
[1732720479215,20.0,238.91,238.85,32.43865241]
[1732720479417,20.0,238.91,238.86,0.83497344]
[1732720479842,20.0,238.93,238.87,32.43865241]
[1732720480015,20.0,238.93,238.89,12.66576206]
[1732720480222,12.66576206,239.0,238.91,32.43865241]
[1732720480421,2.0921,238.99,238.92,8.9073654]
[1732720480723,8.07259412,238.98,238.92,0.83477128]
[1732720481037,8.07259412,238.98,238.91,19.77289035]
[1732720481537,5.2293,239.04,238.92,8.07259412]
[1732720481740,2.0911,239.1,238.98,8.07259412]
[1732720482045,8.07259412,239.05,238.98,27.84548447]
[1732720482243,8.07259412,239.05,238.98,19.77289035]
[1732720482412,12.60870433,239.05,238.98,19.77289035]
[1732720483015,20.0,239.02,238.98,19.77289035]
[1732720484344,20.0,239.0,238.96,19.77289035]
[1732720484721,20.0,239.0,238.96,32.38159468]
[1732720484922,20.0,239.02,238.96,33.2162724]
[1732720485818,20.0,239.02,238.98,12.60870433]
[1732720486045,2.0914,239.07,239.0,12.60870433]
[1732720486333,14.70000433,239.09,239.02,32.38159468]
[1732720487140,20.0,239.06,239.02,19.77289035]
[1732720487318,20.0,239.04,239.0,32.38159468]
[1732720487830,0.4914,239.11,239.03,32.38159468]
[1732720488042,0.4914,239.11,239.06,32.38159468]
[1732720488235,12.60870433,239.09,239.06,19.77289035]
[1732720488436,12.60870433,239.09,239.02,12.60870433]
[1732720489030,20.0,239.06,239.02,12.60870433]
[1732720489547,20.0,239.06,239.01,26.26779035]
[1732720489933,20.0,239.06,239.01,19.77289035]
[1732720490744,14.70010433,239.07,239.01,19.77289035]
[1732720491126,20.0,239.04,239.01,19.77289035]
[1732720492545,20.0,239.0,238.97,19.77289035]
[1732720492920,20.0,239.0,238.98,12.60870433]
[1732720493244,22.0916,239.06,238.98,32.38159468]
[1732720493432,20.0,239.06,239.0,12.60870433]
[1732720493834,2.0914,239.07,239.02,12.60870433]
[1732720495323,2.0914,239.07,239.0,19.77289035]
[1732720495324,20.0,239.04,239.0,19.77289035]
[1732720495525,20.0,239.02,238.98,32.38159468]
[1732720496346,20.0,239.04,238.99,0.83457319]
[1732720496549,20.0,239.04,238.99,19.77289035]
[1732720496930,20.0,239.02,238.99,19.77289035]
[1732720497540,12.60870433,239.07,238.99,19.77289035]
[1732720497541,20.0,239.04,238.99,19.77289035]
[1732720498135,20.0,239.02,238.96,54.32819468]
[1732720499945,20.0,239.0,238.96,54.32819468]
[1732720500345,20.0,239.0,238.96,19.77289035]
[1732720500548,20.0,238.98,238.96,19.77289035]
[1732720500851,20.0,238.96,238.92,32.38159468]
[1732720501223,20.0,238.98,238.92,32.38159468]
[1732720501429,20.0,238.96,238.92,19.77289035]
[1732720501953,20.0,238.96,238.92,32.38159468]
[1732720502125,22.0919,239.02,238.94,12.60870433]
[1732720502331,12.60870433,239.07,238.97,12.60870433]
[1732720502653,2.0915,239.06,238.98,0.83459369]
[1732720502834,12.60870433,239.05,238.97,19.77289035]
[1732720503041,12.60870433,239.01,238.93,32.38159468]
[1732720503231,12.60870433,238.99,238.91,32.38159468]
[1732720503634,20.0,238.96,238.91,32.38159468]
[1732720505127,20.0,238.97,238.93,12.60870433]
[1732720505663,28.60130433,238.96,238.91,19.77289035]
[1732720505955,56.38558833,238.92,238.82,12.60870433]
[1732720506143,20.0,238.91,238.88,12.60870433]
[1732720506330,20.0,238.92,238.9,12.60870433]
[1732720506650,19.5,238.92,238.9,12.60870433]
[1732720506853,14.70080433,238.99,238.86,22.2223]
[1732720506854,12.60870433,238.97,238.88,12.60870433]
[1732720507030,12.60870433,238.95,238.9,19.77289035]
[1732720507551,12.60870433,238.93,238.9,19.77289035]
[1732720507745,12.60870433,238.93,238.86,22.2223]
[1732720507746,12.60870433,238.91,238.86,19.77289035]
[1732720508652,20.0,238.88,238.86,19.77289035]
[1732720510057,25.9926,239.02,238.82,32.38159468]
[1732720510058,20.0,238.86,238.82,32.38159468]
[1732720510245,20.0,238.86,238.82,19.77289035]
[1732720510442,20.0,238.86,238.82,32.38159468]
[1732720511042,6.85653088,239.0,238.82,32.38159468]
[1732720511043,20.0,238.88,238.84,12.60870433]
[1732720511239,20.0,238.95,238.87,32.38159468]
[1732720511544,20.0,238.94,238.87,32.38159468]
[1732720512045,20.0,238.92,238.87,32.38159468]
[1732720513044,20.0,238.92,238.83,0.8349317]
[1732720513045,20.0,238.9,238.85,32.38159468]
[1732720513248,20.0,238.88,238.85,19.77289035]
[1732720514453,20.0,238.86,238.85,19.77289035]
[1732720514658,20.0,238.86,238.83,12.60870433]
[1732720514961,20.0,238.88,238.83,12.60870433]
[1732720515160,20.0,238.86,238.81,32.38159468]
[1732720515851,20.0,238.86,238.83,12.60870433]
[1732720516035,20.0,238.88,238.83,12.60870433]
[1732720517857,20.0,238.88,238.81,33.21672202]
[1732720518054,20.0,238.86,238.81,33.21672202]
[1732720518248,20.0,238.86,238.81,32.38159468]
[1732720520164,20.0,238.86,238.81,19.77289035]
[1732720520352,20.0,238.86,238.8,54.54799468]
[1732720520554,20.0,238.84,238.8,54.54799468]
[1732720520750,12.60870433,238.82,238.76,20.6080636]
[1732720520960,20.0,238.77,238.76,19.77289035]
[1732720521171,20.0,238.77,238.76,32.38159468]
[1732720521345,12.60870433,238.84,238.76,32.38159468]
[1732720521545,20.0,238.81,238.79,12.60870433]
[1732720521746,31.11830433,238.9,238.8,12.60870433]
[1732720521962,31.11830433,238.9,238.82,12.60870433]
[1732720522266,12.60870433,238.88,238.8,32.38159468]
[1732720523160,20.0,238.85,238.8,32.38159468]
[1732720523670,20.0,238.84,238.8,19.77289035]
[1732720524466,20.0,238.84,238.8,27.85375762]
[1732720525354,8.08086727,238.86,238.8,19.77289035]
[1732720525545,20.0,238.81,238.8,19.77289035]
[1732720525741,28.08086727,238.81,238.74,27.85375762]
[1732720525946,28.08086727,238.81,238.74,19.77289035]
[1732720525947,20.0,238.77,238.74,19.77289035]
[1732720526170,20.0,238.77,238.74,27.85375762]
[1732720526665,20.0,238.78,238.74,27.85375762]
[1732720527743,20.0,238.78,238.74,19.77289035]
[1732720528846,20.0,238.78,238.67,19.77289035]
[1732720528847,32.63424066,238.78,238.67,19.77289035]
[1732720529049,20.0,238.73,238.68,12.63424066]
[1732720529347,20.0,238.71,238.68,19.77289035]
[1732720530569,20.0,238.69,238.66,19.77289035]
[1732720531512,20.0,238.73,238.67,12.63424066]
[1732720532151,20.0,238.73,238.66,19.77289035]
[1732720532457,20.0,238.73,238.67,12.63424066]
[1732720532663,20.0,238.73,238.69,12.63424066]
[1732720533759,20.0,238.75,238.71,12.63424066]
[1732720533963,14.72774066,238.84,238.73,12.63424066]
[1732720534281,14.72744066,238.86,238.77,12.63424066]
[1732720534451,12.63424066,238.84,238.77,19.77289035]
[1732720534653,12.63424066,238.86,238.79,12.63424066]
[1732720534853,12.63424066,238.89,238.81,12.63424066]
[1732720535081,18.0514,238.91,238.83,12.63424066]
[1732720535263,12.63424066,238.9,238.83,12.63424066]
[1732720535775,12.63424066,238.92,238.83,12.63424066]
[1732720535961,15.2138,238.96,238.83,12.63424066]
[1732720535962,2.0925,238.95,238.87,12.63424066]
[1732720536165,14.72674066,238.95,238.87,12.63424066]
[1732720537082,20.0,238.9,238.85,12.63424066]
[1732720537683,20.0,238.9,238.87,12.63424066]
[1732720537881,20.0,238.92,238.87,12.63424066]
[1732720538259,20.0,238.9,238.85,12.63424066]
[1732720538685,20.0,238.88,238.83,32.40713101]
[1732720538889,20.0,238.88,238.83,19.77289035]
[1732720539179,20.0,238.86,238.83,19.77289035]
[1732720540091,20.0,238.9,238.85,12.63424066]
[1732720540459,20.0,238.92,238.87,32.40713101]
[1732720540685,20.0,238.93,238.87,32.40713101]
[1732720541495,2.0924,238.96,238.89,12.63424066]
[1732720541665,12.63424066,238.99,238.91,12.63424066]
[1732720541872,12.63424066,238.99,238.91,32.40713101]
[1732720542082,14.72604066,239.03,238.95,12.63424066]
[1732720542286,14.72604066,239.03,238.95,32.40713101]
[1732720542862,12.63424066,239.01,238.95,19.77289035]
[1732720543066,12.63424066,238.99,238.95,19.77289035]
[1732720543489,20.0,238.96,238.91,32.40713101]
[1732720544089,20.0,238.96,238.91,19.77289035]
[1732720544292,20.0,238.94,238.91,19.77289035]
[1732720544874,20.0,238.96,238.91,32.40713101]
[1732720545392,20.0,238.96,238.91,19.77289035]
[1732720545693,20.0,238.94,238.91,19.77289035]
[1732720546290,20.0,238.94,238.91,32.40713101]
[1732720546526,20.0,238.96,238.91,32.40713101]
[1732720546701,5.2286,239.07,238.95,32.40713101]
[1732720546989,12.63424066,239.05,238.98,12.63424066]
[1732720547783,12.63424066,239.05,238.97,0.83459372]
[1732720548293,20.0,239.02,238.97,0.83459372]
[1732720549183,20.0,238.98,238.92,12.63424066]
[1732720549368,20.0,238.98,238.93,23.776884]
[1732720549571,20.0,238.98,238.92,32.40713101]
[1732720550372,20.0,238.96,238.92,19.77289035]
[1732720550583,20.0,238.94,238.92,19.77289035]
[1732720551099,20.0,238.92,238.84,12.63424066]
[1732720551274,20.0,238.9,238.84,12.63424066]
[1732720551475,20.0,238.88,238.84,12.63424066]
[1732720552099,20.0,238.92,238.86,12.63424066]
[1732720552395,20.0,238.92,238.88,19.77289035]
[1732720553396,20.0,238.9,238.88,19.77289035]
[1732720553772,20.0,238.9,238.83,22.4794]
[1732720553773,20.0,238.89,238.8,12.63424066]
[1732720553974,20.0,238.84,238.79,19.77289035]
[1732720554270,20.0,238.84,238.79,0.95720687]
[1732720554468,19.95884066,238.92,238.79,0.95720687]
[1732720554469,20.0,238.82,238.79,0.95720687]
[1732720554770,12.63424066,238.83,238.79,0.95720687]
[1732720554771,20.0,238.8,238.79,0.95720687]
[1732720555586,22.0938,238.8,238.79,0.95720687]
[1732720555806,20.0,238.8,238.79,0.95720687]
[1732720558594,20.0,238.78,238.69,12.63424066]
[1732720558903,20.0,238.74,238.69,32.40713101]
[1732720560382,2.094,238.78,238.69,32.40713101]
[1732720560383,20.0,238.78,238.73,12.63424066]
[1732720560585,20.0,238.8,238.73,12.63424066]
[1732720560975,20.0,238.78,238.71,12.63424066]
[1732720561181,20.0,238.76,238.71,12.63424066]
[1732720561900,70.0,239.07,238.71,12.63424066]
[1732720561901,2.0934,238.84,238.75,32.40713101]
[1732720562203,14.72724066,238.89,238.81,12.63424066]
[1732720562505,12.63424066,238.91,238.83,12.63424066]
[1732720562707,2.0926,238.93,238.85,12.63424066]
[1732720562708,14.72684066,238.93,238.85,12.63424066]
[1732720562890,2.0925,238.95,238.89,12.63424066]
[1732720563084,12.63424066,238.97,238.85,19.77289035]
[1732720563085,2.0923,238.97,238.91,12.63424066]
[1732720563281,33.0056,239.06,238.91,12.63424066]
[1732720563282,12.63424066,239.01,238.93,12.63424066]
[1732720563500,12.63424066,239.03,238.95,12.63424066]
[1732720563797,12.63424066,239.01,238.93,12.63424066]
[1732720564118,12.63424066,238.99,238.91,12.63424066]
[1732720564305,7.3206,239.05,238.89,39.95793866]
[1732720564306,20.18504831,238.97,238.89,39.95793866]
[1732720564495,20.18504831,239.04,238.83,10.2067]
[1732720564496,20.18504831,238.91,238.83,26.20484831]
[1732720564684,20.18504831,238.91,238.84,19.77289035]
[1732720564877,10.0,239.02,238.87,20.18504831]
[1732720564878,20.0,238.9,238.87,20.18504831]
[1732720565088,20.18504831,239.04,238.85,20.18504831]
[1732720565089,20.0,238.92,238.85,20.18504831]
[1732720565408,20.0,238.9,238.85,39.95793866]
[1732720565703,20.0,238.88,238.83,6.0198]
[1732720565877,20.0,238.86,238.81,19.77289035]
[1732720566589,22.27794831,238.91,238.83,20.18504831]
[1732720566800,20.0,238.9,238.85,20.18504831]
[1732720567392,20.0,238.92,238.87,20.18504831]
[1732720567587,2.0925,238.95,238.87,20.18504831]
[1732720568499,20.18504831,238.95,238.87,20.18504831]
[1732720568799,20.0,238.9,238.85,19.77289035]
[1732720569101,20.18504831,238.91,238.85,19.77289035]
[1732720569981,20.0,238.88,238.85,19.77289035]
[1732720571601,20.0,238.86,238.85,19.77289035]
[1732720572494,20.0,238.86,238.81,23.776884]
[1732720573000,20.0,238.86,238.8,39.95793866]
[1732720573200,5.2309,238.97,238.8,19.77289035]
[1732720573201,20.0,238.84,238.8,19.77289035]
[1732720573411,20.0,238.8,238.77,6.3637]
[1732720573905,20.0,238.78,238.76,19.77289035]
[1732720574106,20.0,238.74,238.71,25.91229035]
[1732720574280,20.0,238.74,238.71,19.77289035]
[1732720574587,20.0,238.7,238.68,19.77289035]
[1732720575302,20.0,238.68,238.65,26.39829035]
[1732720575799,20.0,238.66,238.61,45.46123933]
[1732720576007,20.0,238.66,238.61,19.77289035]
[1732720577001,20.0,238.64,238.61,19.77289035]
[1732720577594,22.1234,238.81,238.63,20.18504831]
[1732720577793,20.18504831,238.81,238.72,20.18504831]
[1732720578184,20.18504831,238.79,238.7,20.18504831]
[1732720578414,20.18504831,238.77,238.68,20.18504831]
[1732720578582,20.18504831,238.77,238.68,39.95793866]
[1732720578779,22.27904831,238.77,238.68,20.18504831]
[1732720579009,22.27914831,238.77,238.68,20.18504831]
[1732720579201,20.18504831,238.75,238.66,20.18504831]
[1732720580009,2.0935,238.83,238.7,5.0]
[1732720580215,20.18504831,238.82,238.74,20.18504831]
[1732720580423,20.18504831,238.82,238.75,0.83540492]
[1732720581294,20.18504831,238.84,238.76,20.18504831]
[1732720581713,20.18504831,238.86,238.76,20.18504831]
[1732720581919,20.18504831,238.86,238.77,0.83526047]
[1732720582294,20.18504831,238.84,238.76,20.18504831]
[1732720583026,20.18504831,238.84,238.75,19.77289035]
[1732720583027,20.18504831,238.82,238.75,19.77289035]
[1732720583523,20.18504831,238.84,238.76,21.02039982]
[1732720583698,20.18504831,238.86,238.77,23.776884]
[1732720584042,22.27794831,238.9,238.81,20.18504831]
[1732720584231,20.18504831,238.86,238.79,20.18504831]
[1732720584516,20.18504831,238.86,238.77,39.95793866]
[1732720584893,20.18504831,238.84,238.77,19.77289035]
[1732720585094,20.18504831,238.8,238.71,62.00873866]
[1732720585328,20.18504831,238.78,238.71,6.4797]
[1732720586613,20.18504831,238.8,238.71,26.66474831]
[1732720586992,20.18504831,238.8,238.71,30.85384831]
[1732720587196,22.27884831,238.8,238.71,26.66474831]
[1732720587424,20.18504831,238.8,238.73,20.18504831]
[1732720587725,22.27864831,238.82,238.73,20.18504831]
[1732720587906,20.18504831,238.84,238.76,20.18504831]
[1732720588298,2.0933,238.85,238.76,20.18504831]
[1732720588299,20.18504831,238.86,238.76,20.18504831]
[1732720588508,22.27824831,238.86,238.76,20.18504831]
[1732720588691,20.18504831,238.86,238.76,20.18504831]
[1732720588908,20.18504831,238.84,238.76,20.18504831]
[1732720589120,22.27814831,238.88,238.8,20.18504831]
[1732720589419,20.18504831,238.9,238.82,20.18504831]
[1732720589619,15.3114,238.92,238.84,20.18504831]
[1732720589620,20.18504831,238.92,238.84,20.18504831]
[1732720590221,20.18504831,238.94,238.84,20.18504831]
[1732720590622,20.18504831,238.96,238.88,20.18504831]
[1732720590921,20.18504831,238.94,238.85,23.776884]
[1732720591121,20.18504831,238.92,238.85,43.54977435]
[1732720591828,20.18504831,238.94,238.87,20.18504831]
[1732720592027,20.18504831,238.92,238.85,43.96193231]
[1732720592327,20.18504831,238.94,238.87,20.18504831]
[1732720592501,40.18504831,238.96,238.87,20.18504831]
[1732720592821,20.18504831,238.94,238.85,63.73482266]
[1732720593225,20.18504831,238.92,238.84,6.2523]
[1732720595215,22.27774831,238.92,238.84,6.2523]
[1732720596529,20.18504831,238.92,238.85,20.18504831]
[1732720597231,22.27774831,238.92,238.84,6.2523]
[1732720597398,22.27764831,238.94,238.85,20.18504831]
[1732720597607,20.18504831,238.96,238.87,20.18504831]
[1732720597830,2.0923,238.97,238.89,20.18504831]
[1732720598211,20.18504831,238.96,238.87,20.18504831]
[1732720598411,20.18504831,238.9,238.83,19.77289035]
[1732720598621,20.18504831,238.86,238.79,19.77289035]
[1732720598806,20.18504831,238.84,238.77,62.08258873]
[1732720599125,20.18504831,238.84,238.77,62.49474669]
[1732720599327,20.18504831,238.86,238.77,62.49474669]
[1732720599525,20.18504831,238.82,238.77,25.83409838]
[1732720599728,20.18504831,238.8,238.77,25.83409838]
[1732720600021,20.18504831,238.82,238.77,25.83409838]
[1732720600529,22.27854831,238.84,238.77,25.83409838]
[1732720601220,20.18504831,238.82,238.77,25.83409838]
[1732720601610,22.27854831,238.84,238.77,25.83409838]
[1732720602125,22.27814831,238.88,238.79,20.18504831]
[1732720602428,20.18504831,238.86,238.77,65.79203704]
[1732720602627,20.18504831,238.88,238.79,20.18504831]
[1732720602829,22.27784831,238.92,238.83,20.18504831]
[1732720603038,22.27764831,238.94,238.85,20.18504831]
[1732720604428,20.18504831,238.92,238.83,20.18504831]
[1732720604725,20.18504831,238.9,238.83,20.18504831]
[1732720605213,20.18504831,238.92,238.83,20.18504831]
[1732720605615,22.27764831,238.94,238.85,20.18504831]
[1732720606037,20.18504831,238.92,238.83,20.18504831]
[1732720606336,20.18504831,238.88,238.79,26.31424831]
[1732720606573,20.18504831,238.84,238.77,25.83409838]
[1732720606843,20.18504831,238.82,238.77,25.83409838]
[1732720608009,20.18504831,238.84,238.77,25.83409838]
[1732720608240,20.18504831,238.82,238.77,25.83409838]
[1732720609251,22.27864831,238.82,238.77,25.83409838]
[1732720609532,20.18504831,238.8,238.73,6.2209]
[1732720609909,20.18504831,238.76,238.7,15.5507]
[1732720610106,20.18504831,238.76,238.68,6.2071]
[1732720610329,20.18504831,238.76,238.68,10.3967]
[1732720610537,20.18504831,238.8,238.71,20.18504831]
[1732720610909,20.18504831,238.82,238.73,39.95793866]
[1732720611415,20.18504831,238.82,238.75,20.18504831]
[1732720611717,5.2324,238.9,238.75,20.18504831]
[1732720611718,20.18504831,238.86,238.77,20.18504831]
[1732720611918,20.18504831,238.88,238.79,20.18504831]
[1732720612226,20.18504831,238.86,238.79,6.1766]
[1732720612610,22.27824831,238.86,238.79,6.1766]
[1732720612806,20.18504831,238.84,238.79,6.1766]
[1732720613010,20.18504831,238.86,238.79,6.1766]
[1732720613313,20.18504831,238.86,238.79,25.94949035]
[1732720614309,20.18504831,238.88,238.79,30.54934831]
[1732720614712,22.27814831,238.88,238.79,26.36164831]
[1732720614940,22.27814831,238.88,238.79,6.1766]
[1732720615111,20.18504831,238.88,238.79,30.54934831]
[1732720615312,20.18504831,238.88,238.79,26.36164831]
[1732720615513,20.18504831,238.86,238.79,6.1766]
[1732720615740,20.18504831,238.84,238.79,6.1766]
[1732720615938,20.18504831,238.84,238.76,15.0893]
[1732720616116,20.18504831,238.82,238.76,15.0893]
[1732720616452,20.18504831,238.82,238.74,25.92669035]
[1732720616453,20.18504831,238.82,238.74,6.1538]
[1732720616613,2.0937,238.81,238.74,6.1538]
[1732720617140,20.18504831,238.8,238.74,6.1538]
[1732720617314,20.18504831,238.78,238.71,15.8289]
[1732720617832,2.0937,238.81,238.71,36.01394831]
[1732720617833,20.18504831,238.8,238.71,36.01394831]
[1732720618144,2.0937,238.81,238.73,20.18504831]
[1732720618330,22.27864831,238.82,238.73,20.18504831]
[1732720618533,20.18504831,238.82,238.75,20.18504831]
[1732720618732,20.18504831,238.8,238.71,55.78683866]
[1732720619226,20.18504831,238.78,238.71,35.60179035]
[1732720619426,20.18504831,238.78,238.71,15.8289]
[1732720620535,20.18504831,238.76,238.67,52.37244669]
[1732720620736,20.18504831,238.8,238.71,20.18504831]
[1732720620949,2.0929,238.9,238.76,20.18504831]
[1732720621139,20.18504831,238.86,238.76,39.95793866]
[1732720621451,20.18504831,238.82,238.76,19.77289035]
[1732720622156,20.18504831,238.84,238.76,39.95793866]
[1732720622329,20.18504831,238.89,238.8,20.18504831]
[1732720622525,2.0928,238.91,238.79,6.0975]
[1732720622725,20.18504831,238.83,238.79,6.0975]
[1732720623029,20.18504831,238.81,238.72,32.38309838]
[1732720623231,20.18504831,238.83,238.75,20.18504831]
[1732720623454,20.18504831,238.85,238.75,20.18504831]
[1732720623635,7.3248,238.91,238.73,65.79203704]
[1732720623636,20.18504831,238.83,238.73,65.79203704]
[1732720623827,20.18504831,238.83,238.75,20.18504831]
[1732720624747,20.18504831,238.89,238.81,20.18504831]
[1732720624949,20.18504831,238.91,238.81,20.18504831]
[1732720625148,20.18504831,238.89,238.81,20.18504831]
[1732720625335,20.18504831,238.89,238.79,20.18504831]
[1732720625544,20.18504831,238.89,238.81,20.18504831]
[1732720625741,20.18504831,238.95,238.87,20.18504831]
[1732720625944,20.18504831,238.99,238.91,20.18504831]
[1732720626332,20.18504831,238.97,238.89,20.18504831]
[1732720626558,20.18504831,238.95,238.87,39.95793866]